Workbook

Sheet 수익성 분석
B2: 고객 수익성 분석
B3: 2013년 1월 20일 | D3: 회사 이름
B6: 고객 활동 내역 | C6: 고객 1 | D6: 고객 2 | E6: 고객 3 | F6: 합계
B7: 활성 고객 수 - 시작 시점 | C7: 5 | D7: 8 | E7: 8 | F7: =SUM(C7:E7) -> 21
B8: 추가 고객 수 | C8: 2 | D8: 4 | E8: 4 | F8: =SUM(C8:E8) -> 10
B9: 이탈/계약 종료 고객 수 | C9: (1) | D9: (2) | E9: (2) | F9: (5)
B10: 활성 고객 수 - 종료 시점 | C10: =SUBTOTAL(109,'수익성 분석'!$C$7:$C$9) -> 6 | D10: =SUBTOTAL(109,'수익성 분석'!$D$7:$D$9) -> 10 | E10: =SUBTOTAL(109,'수익성 분석'!$E$7:$E$9) -> 10 | F10: 26
B12: 수익성 분석
B13: 세그먼트당 수익 | C13: ₩1,500,000,000 | D13: ₩1,800,000,000 | E13: ₩2,500,000,000 | F13: =SUM('수익성 분석'!$C13:$E13) -> ₩5,800,000,000
B14: 가중치 | C14: =C13/$F$13 -> 25.9% | D14: =D13/$F$13 -> 31.0% | E14: 43.1% | F14: =SUM(C14:E14) -> 100.0%
B16: 매출 원가
B17: 제공 중인 서비스 및 지원 비용 | C17: ₩1,000,000,000 | D17: ₩1,400,000,000 | E17: ₩1,400,000,000 | F17: =SUM('수익성 분석'!$C17:$E17) -> ₩3,800,000,000
B18: 기타 고객 관련 직접비 | C18: 200,000,000 | D18: 100,000,000 | E18: 100,000,000 | F18: =SUM('수익성 분석'!$C18:$E18) -> 400,000,000
B19: 총 매출 원가 | C19: =SUBTOTAL(109,'수익성 분석'!$C$17:$C$18) -> 1,200,000,000 | D19: =SUBTOTAL(109,'수익성 분석'!$D$17:$D$18) -> 1,500,000,000 | E19: =SUBTOTAL(109,'수익성 분석'!$E$17:$E$18) -> 1,500,000,000 | F19: =SUBTOTAL(109,'수익성 분석'!$F$17:$F$18) -> 4,200,000,000
B20: 총수익 | C20: =C13-'수익성 분석'!$C$19 -> ₩300,000,000 | D20: =D13-'수익성 분석'!$D$19 -> ₩300,000,000 | E20: =E13-'수익성 분석'!$E$19 -> ₩1,000,000,000 | F20: =F13-'수익성 분석'!$F$19 -> ₩1,600,000,000
B21: 가중치 | C21: =MAX(0,MIN(1,C20/$F$20)) -> 18.8% | D21: =MAX(0,MIN(1,D20/$F$20)) -> 18.8% | E21: 62.5% | F21: =SUM('수익성 분석'!$C21:$E21) -> 100.0%
B23: 기타 비용
B24: 고객 계약 체결 | C24: ₩105,000,000 | D24: ₩120,000,000 | E24: ₩235,000,000 | F24: =SUM('수익성 분석'!$C24:$E24) -> ₩460,000,000
B25: 고객 마케팅 | C25: 150,000,000 | D25: 125,000,000 | E25: 275,000,000 | F25: =SUM('수익성 분석'!$C25:$E25) -> ₩550,000,000
B26: 고객 계약 종료 | C26: 80,000,000 | D26: 190,000,000 | E26: 140,000,000 | F26: =SUM('수익성 분석'!$C26:$E26) -> ₩410,000,000
B27: 기타 고객 비용 합계 | C27: =SUBTOTAL(109,'수익성 분석'!$C$24:$C$26) -> 335,000,000 | D27: =SUBTOTAL(109,'수익성 분석'!$D$24:$D$26) -> 435,000,000 | E27: =SUBTOTAL(109,'수익성 분석'!$E$24:$E$26) -> 650,000,000 | F27: =SUBTOTAL(109,'수익성 분석'!$F$24:$F$26) -> 1,420,000,000
B29: 세그먼트당 고객 수익 | C29: =C20-C27 -> (₩35,000,000) | D29: =D20-D27 -> (₩135,000,000) | E29: =E20-E27 -> ₩350,000,000 | F29: =F20-'수익성 분석'!$F$27 -> ₩180,000,000
B30: 가중치 | C30: =MAX(0,MIN(1,C29/$F$29)) -> 0.0% | D30: =MAX(0,MIN(1,D29/$F$29)) -> 0.0% | E30: 100.0% | F30: =SUM('수익성 분석'!$C30:$E30) -> 100.0%
B32: 요약 결과
B33: 계약 체결 고객당 평균 비용 | C33: =C24/C8 -> ₩52,500,000 | D33: =D24/D8 -> ₩30,000,000 | E33: =E24/E8 -> ₩58,750,000
B34: 계약 종료 고객당 평균 비용 | C34: =-C26/C9 -> ₩80,000,000 | D34: =-D26/D9 -> ₩95,000,000 | E34: =-E26/E9 -> ₩70,000,000
B35: 활성 고객당 평균 마케팅 비용 | C35: =C25/'수익성 분석'!$C$10 -> ₩25,000,000 | D35: =D25/'수익성 분석'!$D$10 -> ₩12,500,000 | E35: =E25/'수익성 분석'!$E$10 -> ₩27,500,000
B36: 고객당 평균 손익 | C36: =C29/'수익성 분석'!$C$10 -> (₩5,833,333) | D36: =D29/'수익성 분석'!$D$10 -> (₩13,500,000) | E36: =E29/'수익성 분석'!$E$10 -> ₩35,000,000

Sheet 요약 결과 차트
B2: 고객별 요약 결과
B3: =ReportDate -> 2013년 1월 20일 | R3: =CompanyName -> 회사 이름
